bitfinex-derivatives/quotes_BTCF0:USTF0_20250213
["timestamp","ask_amount","ask_price","bid_price","bid_amount"]
[1739453125724,0.2081161,96087.0,96075.0,0.3608]
[1739453126023,0.2081161,96087.0,96075.0,0.5689401]
[1739453126611,0.14230104,96088.0,96075.0,0.3608]
[1739453126816,0.14230104,96088.0,96076.0,0.2081373]
[1739453127520,0.14230104,96088.0,96075.0,0.3608]
[1739453127718,0.208119,96085.0,96075.0,0.3608]
[1739453129221,0.14230104,96088.0,96075.0,0.3618]
[1739453129418,0.2081254,96082.0,96075.0,0.3618]
[1739453129620,0.2081254,96082.0,96075.0,0.3628]
[1739453129822,0.14230104,96088.0,96075.0,0.3628]
[1739453130325,0.14230104,96088.0,96077.0,0.2081346]
[1739453131028,0.2081241,96083.0,96075.0,0.3628]
[1739453131232,0.14230104,96088.0,96075.0,0.3628]
[1739453131422,0.14230104,96088.0,96075.0,0.3618]
[1739453132531,0.2081197,96085.0,96075.0,0.3618]
[1739453132724,0.07016,96084.0,96075.0,0.3618]
[1739453132917,0.2782811,96084.0,96075.0,0.3608]
[1739453133128,0.2081211,96084.0,96075.0,0.3608]
[1739453133929,0.2081348,96078.0,96075.0,0.3608]
[1739453135037,0.2081259,96082.0,96075.0,0.3608]
[1739453135238,0.2081183,96086.0,96075.0,0.3608]
[1739453135441,0.2081183,96086.0,96075.0,0.56994]
[1739453136235,0.14230104,96088.0,96075.0,0.3628]
[1739453136539,0.14230104,96088.0,96076.0,0.2081379]
[1739453136837,0.2081181,96086.0,96075.0,0.3628]
[1739453137233,0.2081198,96085.0,96075.0,0.3618]
[1739453137438,0.07016,96084.0,96075.0,0.3618]
[1739453138040,0.07016,96084.0,96075.0,0.3608]
[1739453138338,0.2081262,96082.0,96075.0,0.3608]
[1739453139028,0.14230104,96088.0,96075.0,0.3608]
[1739453139233,0.3608,96086.0,96078.0,0.2081333]
[1739453139539,0.3608,96086.0,96076.0,0.1092]
[1739453139743,0.07016,96085.0,96076.0,0.1092]
[1739453140032,0.5689217,96084.0,96076.0,0.1092]
[1739453140340,0.3608,96084.0,96076.0,0.1092]
[1739453140531,0.07012,96083.0,96076.0,0.1092]
[1739453141244,0.07012,96083.0,96076.0,0.1112]
[1739453141539,0.07012,96083.0,96076.0,0.1102]
[1739453142640,0.07012,96083.0,96076.0,0.1092]
[1739453142835,0.07012,96082.0,96078.0,0.3608]
[1739453143043,0.07012,96082.0,96081.0,0.2081275]
[1739453143245,0.11197096,96088.0,96078.0,0.3608]
[1739453143745,0.11197096,96088.0,96079.0,0.2081318]
[1739453145240,0.11197096,96088.0,96078.0,0.3608]
[1739453145447,0.19394088,96088.0,96078.0,0.3608]
[1739453145746,0.208123,96084.0,96078.0,0.3608]
[1739453146133,0.2221,96087.0,96078.0,0.3608]
[1739453146541,0.208119,96085.0,96078.0,0.3608]
[1739453148043,0.2081225,96084.0,96078.0,0.3608]
[1739453148849,0.2221,96087.0,96078.0,0.3608]
[1739453149037,0.19394088,96088.0,96078.0,0.3608]
[1739453149348,0.11197096,96088.0,96078.0,0.3608]
[1739453150642,0.11197096,96088.0,96078.0,0.3618]
[1739453151045,0.11197096,96088.0,96078.0,0.3608]
[1739453151432,0.07646514,96087.0,96078.0,0.3608]
[1739453154953,0.2081168,96086.0,96078.0,0.3608]
[1739453155250,0.3608,96084.0,96077.0,0.1148]
[1739453155451,0.07012,96083.0,96077.0,0.1148]
[1739453158646,0.07012,96082.0,96077.0,0.1158]
[1739453160043,0.07012,96082.0,96077.0,0.1148]
[1739453160243,0.07012,96082.0,96077.0,0.1158]
[1739453160648,0.07012,96082.0,96077.0,0.1148]
[1739453161854,0.07012,96082.0,96077.0,0.1158]
[1739453163842,0.07012,96082.0,96077.0,0.1148]
[1739453164565,0.07012,96082.0,96077.0,0.1158]
[1739453164854,0.208128,96081.0,96077.0,0.1158]
[1739453165253,0.208128,96081.0,96077.0,0.001]
[1739453165550,0.3608,96084.0,96077.0,0.001]
[1739453165739,0.07012,96083.0,96077.0,0.001]
[1739453166654,0.07012,96083.0,96073.0,0.3608]
[1739453167452,0.07012,96083.0,96077.0,0.001]
[1739453167850,0.2081254,96082.0,96073.0,0.3608]
[1739453168451,0.2081254,96082.0,96077.0,0.001]
[1739453168950,0.2081301,96080.0,96077.0,0.001]
[1739453169146,0.16393984,96083.0,96077.0,0.001]
[1739453169656,0.37206304,96083.0,96077.0,0.001]
[1739453169845,0.2081299,96080.0,96077.0,0.001]
[1739453170045,0.2081299,96080.0,96073.0,0.3608]
[1739453170653,0.208134,96078.0,96077.0,0.001]
[1739453171157,0.208134,96078.0,96073.0,0.3608]
[1739453172065,0.37206414,96083.0,96073.0,0.3608]
[1739453172254,0.08196992,96083.0,96073.0,0.3608]
[1739453172758,0.16393984,96083.0,96073.0,0.3608]
[1739453172953,0.37206344,96083.0,96077.0,0.001]
[1739453173543,0.37206344,96083.0,96073.0,0.3608]
[1739453174148,0.37206344,96083.0,96077.0,0.001]
[1739453174356,0.16393984,96083.0,96077.0,0.001]
[1739453174660,0.16393984,96083.0,96073.0,0.3608]
[1739453174661,0.2081322,96079.0,96073.0,0.3608]
[1739453174958,0.2081378,96077.0,96073.0,0.3608]
[1739453175253,0.16393984,96083.0,96073.0,0.3608]
[1739453175451,0.2081317,96080.0,96073.0,0.3608]
[1739453176857,0.2081317,96080.0,96077.0,0.001]
[1739453177256,0.2081317,96080.0,96073.0,0.3608]
[1739453178045,0.2081327,96079.0,96077.0,0.001]
[1739453179052,0.16393984,96083.0,96077.0,0.001]
[1739453179262,0.2081337,96079.0,96077.0,0.001]
[1739453179565,0.208134,96078.0,96073.0,0.3608]
[1739453180158,0.208134,96078.0,96077.0,0.001]
[1739453180660,0.208134,96078.0,96073.0,0.3608]
[1739453182462,0.208133,96079.0,96077.0,0.001]
[1739453182961,0.2081359,96078.0,96073.0,0.3608]
[1739453183660,0.2081359,96078.0,96077.0,0.001]
[1739453184055,0.2081359,96078.0,96073.0,0.3608]
[1739453185561,0.2081359,96078.0,94017.0,0.26023435]
[1739453185562,0.2272,96077.0,96050.0,0.2501894]
[1739453185764,0.2081687,96062.0,96050.0,0.2501894]
[1739453186064,0.2081741,96060.0,96050.0,0.2501894]
[1739453186261,0.3608,96059.0,96050.0,0.2501894]
[1739453186464,0.3608,96059.0,96058.0,0.18662718]
[1739453186766,0.5689752,96059.0,96058.0,0.18662718]
[1739453187157,0.60665749,96059.0,96058.0,0.18662718]
[1739453187754,0.39848229,96059.0,96058.0,0.18762718]
[1739453188065,0.03768229,96059.0,96058.0,0.18762718]
[1739453188256,0.44276992,96068.0,96058.0,0.39580448]
[1739453188458,0.08196992,96068.0,96059.0,0.2162]
[1739453188651,0.08196992,96068.0,96061.0,0.3608]
[1739453188956,0.11954134,96068.0,96062.0,0.2081669]
[1739453189156,0.03757142,96068.0,96064.0,0.2081622]
[1739453189358,0.08196992,96072.0,96062.0,0.1052]
[1739453189555,0.08196992,96072.0,96066.0,0.2081592]
[1739453189756,0.08196992,96076.0,96062.0,0.1052]
[1739453189954,0.08196992,96072.0,96067.0,0.2081568]
[1739453190260,0.08196992,96077.0,96062.0,0.1052]
[1739453190461,0.24945193,96079.0,96069.0,0.3608]
[1739453190462,0.08196992,96072.0,96069.0,0.3608]
[1739453190665,0.33142185,96079.0,96069.0,0.3608]
[1739453191671,0.208139,96076.0,96069.0,0.3608]
[1739453193464,0.69378186,96079.0,96069.0,0.3608]
[1739453193661,0.51678667,96079.0,96069.0,0.3608]
[1739453195867,0.51678667,96079.0,96070.0,0.2081498]
[1739453196071,0.51678667,96079.0,96069.0,0.3608]
[1739453196865,0.2081367,96077.0,96069.0,0.3608]
[1739453198166,0.3608,96071.0,96059.0,0.2162]
[1739453198365,0.12493929,96069.0,96059.0,0.2162]
[1739453199868,0.12493929,96069.0,96059.0,0.2172]
[1739453200670,0.2081607,96066.0,96059.0,0.2172]
[1739453201667,0.12493929,96069.0,96059.0,0.2172]
[1739453202375,0.48573929,96069.0,96059.0,0.2172]
[1739453204976,0.2081688,96062.0,96059.0,0.2172]
[1739453206469,0.3608,96060.0,96059.0,0.1123]
[1739453206669,0.3608,96060.0,96059.0,0.001]
[1739453206873,0.639053,96060.0,96059.0,0.001]
[1739453207168,0.568973,96060.0,96059.0,0.001]
[1739453209681,0.3608,96060.0,96059.0,0.001]
[1739453209875,0.43088,96060.0,96059.0,0.001]
[1739453210082,0.07008,96060.0,96059.0,0.001]
[1739453210479,0.10145806,96060.0,96059.0,0.001]
[1739453210775,0.03137806,96060.0,96059.0,0.001]
[1739453211076,0.2081695,96062.0,96059.0,0.001]
[1739453211473,0.48733929,96069.0,96059.0,0.001]
[1739453211673,0.208173,96060.0,96059.0,0.001]
[1739453212774,0.03208703,96060.0,96050.0,0.4708]
[1739453213080,0.2081752,96059.0,96050.0,0.4708]
[1739453213781,0.16404042,96068.0,96059.0,0.001]
[1739453213978,0.07008,96067.0,96059.0,0.001]
[1739453214186,0.2081727,96061.0,96059.0,0.001]
[1739453214478,0.2081727,96061.0,96058.0,0.00115617]
[1739453215188,0.16404042,96068.0,96058.0,0.00115617]
[1739453215482,0.19536468,96068.0,96058.0,0.00115617]
[1739453216081,0.19536468,96068.0,96059.0,0.001]
[1739453216571,0.2081667,96063.0,96059.0,0.001]
[1739453216775,0.2081667,96063.0,96058.0,0.00015617]
[1739453216975,0.2081667,96063.0,96058.0,0.00115617]
[1739453217385,0.3608,96060.0,96058.0,0.00115617]
[1739453217783,0.2081667,96063.0,96059.0,0.001]
[1739453219185,0.2081667,96063.0,96058.0,0.00115617]
[1739453219684,0.19536468,96068.0,96058.0,0.00115617]
[1739453220083,0.19536468,96068.0,96059.0,0.001]
[1739453220289,0.208173,96060.0,96059.0,0.001]
[1739453220785,0.2081752,96059.0,96058.0,0.00115617]
[1739453220986,0.3608,96061.0,96058.0,0.00115617]
[1739453222387,0.3608,96061.0,96058.0,0.00015617]
[1739453222586,0.3608,96061.0,96059.0,0.001]
[1739453222791,0.07008,96060.0,96059.0,0.001]
[1739453223285,0.07008,96060.0,96058.0,0.00115617]
[1739453223486,0.3608,96061.0,96058.0,0.00115617]
[1739453224087,0.3608,96061.0,96059.0,0.001]
[1739453224280,0.07008,96060.0,96059.0,0.001]
[1739453225680,0.07008,96060.0,96058.0,0.00115617]
[1739453225881,0.2081752,96059.0,96058.0,0.00115617]
[1739453226975,0.2081752,96059.0,96058.0,0.00015617]
[1739453229383,0.5275752,96059.0,96058.0,0.00015617]
[1739453229580,0.5275752,96059.0,96058.0,0.00115617]
[1739453230786,0.01312115,96043.0,96036.0,0.1028]
[1739453230987,0.3608,96043.0,96036.0,0.1028]
[1739453231188,0.07004,96042.0,96036.0,0.1028]
[1739453231886,0.2782522,96042.0,96036.0,0.1028]
[1739453232194,0.2782522,96042.0,96036.0,0.006]
[1739453232195,0.2082122,96042.0,96036.0,0.006]
[1739453232385,0.3608,96043.0,96036.0,0.006]
[1739453232585,0.07004,96042.0,96036.0,0.006]
[1739453232787,0.07004,96042.0,96036.0,0.013]
[1739453234386,0.07004,96042.0,96036.0,0.012]
[1739453235490,0.07004,96042.0,96036.0,0.005]
[1739453235681,0.07004,96042.0,96036.0,0.012]
[1739453236294,0.25696683,96042.0,96036.0,0.012]
[1739453236494,0.18692683,96042.0,96036.0,0.012]
[1739453236693,0.18692683,96042.0,96018.0,0.3608]
[1739453236990,0.3608,96032.0,96007.0,0.3608]
[1739453237195,0.3608,96013.0,96004.0,0.2238]
[1739453237494,0.07004,96012.0,96004.0,0.1114]
[1739453237693,0.5690938,96005.0,95993.0,0.31078502]
[1739453237989,0.60096474,96005.0,95998.0,0.00015617]
[1739453238590,0.60096474,96005.0,96004.0,0.004]
[1739453238789,0.39267094,96005.0,96004.0,0.004]
[1739453240092,0.39267094,96005.0,96003.0,0.25262802]
[1739453240494,0.39367094,96005.0,96004.0,0.006]
[1739453240692,0.39367094,96005.0,96004.0,0.009]
[1739453241195,0.39367094,96005.0,96004.0,0.006]
[1739453241501,0.39267094,96005.0,96003.0,0.25262802]
[1739453241692,0.39367094,96005.0,96003.0,0.25562802]
[1739453241897,0.39367094,96005.0,96004.0,0.003]
[1739453242992,0.39267094,96005.0,96004.0,0.003]
[1739453243191,0.39367094,96005.0,96004.0,0.007]
[1739453243391,0.39367094,96005.0,96004.0,0.004]
[1739453244191,0.39367094,96005.0,96004.0,0.008]
[1739453245998,0.39367094,96005.0,95998.0,0.00015617]
[1739453246201,0.39367094,96005.0,95988.0,0.3328]
[1739453246393,0.33343283,95998.0,95988.0,0.3328]
[1739453246598,0.2083205,95993.0,95988.0,0.3328]
[1739453246799,0.2083205,95993.0,95980.0,0.3608]
[1739453247001,0.12512323,95990.0,95980.0,0.3608]
[1739453247891,0.12512323,95990.0,95988.0,0.007]
[1739453248092,0.001,95993.0,95988.0,0.007]
[1739453248297,0.2083258,95990.0,95988.0,0.007]
[1739453248700,0.208327,95989.0,95988.0,0.007]
[1739453249097,0.208327,95989.0,95988.0,0.00139]
[1739453250203,0.2083444,95981.0,95980.0,0.008]
[1739453250506,0.5691444,95981.0,95980.0,0.008]
[1739453250805,0.5691444,95981.0,95980.0,0.005]
[1739453251098,0.2083487,95979.0,95978.0,0.1114]
[1739453253305,0.2093487,95979.0,95978.0,0.04941973]
[1739453253700,0.2103487,95979.0,95978.0,0.05641973]
[1739453254700,0.002,95979.0,95970.0,0.30438027]
[1739453254908,0.12512323,95980.0,95970.0,0.30438027]
[1739453256301,0.001,95979.0,95971.0,0.104]
[1739453256608,0.07008,95978.0,95971.0,0.104]
[1739453258011,0.07208,95978.0,95971.0,0.111]
[1739453259204,0.07008,95977.0,95971.0,0.111]
[1739453260200,0.07008,95977.0,95971.0,0.11]
[1739453260403,0.07208,95977.0,95971.0,0.111]
[1739453260600,0.07208,95977.0,95971.0,0.007]
[1739453260601,0.2083619,95973.0,95971.0,0.007]
[1739453260914,0.2083765,95967.0,95961.0,0.17850646]
[1739453261308,0.3608,95964.0,95961.0,0.1064]
[1739453261507,0.07008,95963.0,95955.0,0.06895]
[1739453261717,0.12512323,95965.0,95955.0,0.06895]
[1739453262907,0.48592323,95965.0,95961.0,0.002]
[1739453263111,0.3608,95965.0,95961.0,0.002]
[1739453263415,0.07008,95964.0,95955.0,0.06895]
[1739453263707,0.48792323,95965.0,95955.0,0.07195]
[1739453264116,0.48692323,95965.0,95961.0,0.002]
[1739453264311,0.3618,95965.0,95961.0,0.002]
[1739453264512,0.07108,95964.0,95961.0,0.002]
[1739453265609,0.07208,95964.0,95956.0,0.1126]
[1739453266215,0.07008,95964.0,95956.0,0.1126]
[1739453266417,0.07008,95964.0,95961.0,0.001]
[1739453266722,0.09789656,95964.0,95961.0,0.001]
[1739453266920,0.02781656,95964.0,95956.0,0.1126]
[1739453267223,0.001,95964.0,95956.0,0.1136]
[1739453267416,0.07008,95963.0,95956.0,0.1136]
[1739453268012,0.07008,95963.0,95956.0,0.1126]
[1739453268917,0.07008,95963.0,95961.0,0.001]
[1739453269634,0.07008,95963.0,95956.0,0.1136]
[1739453269820,0.07108,95963.0,95956.0,0.1136]
[1739453270218,0.07108,95963.0,95961.0,0.001]
[1739453270619,0.07108,95963.0,95961.0,0.2093875]
[1739453270820,0.001,95963.0,95961.0,0.2083875]
[1739453271620,0.001,95963.0,95962.0,0.5691856]
[1739453273024,0.001,95963.0,95962.0,0.5701856]
[1739453273220,0.02703918,95964.0,95962.0,0.5701856]
[1739453273421,0.001,95963.0,95962.0,0.5701856]
[1739453274224,0.00015626,95969.0,95962.0,0.3618]
[1739453274523,0.001,95964.0,95963.0,0.2083828]
[1739453275428,0.02775042,95964.0,95963.0,0.2083828]
[1739453276319,0.02775042,95964.0,95963.0,0.2093828]
[1739453276723,0.02675042,95964.0,95963.0,0.2093828]
[1739453276920,0.00015626,95969.0,95963.0,0.001]
[1739453277332,0.00015626,95969.0,95966.0,0.2083769]
[1739453277532,0.00015626,95969.0,95967.0,0.2083741]
[1739453277727,0.00015626,95969.0,95968.0,0.2083726]
[1739453278631,0.00115626,95969.0,95968.0,0.2083726]
[1739453279126,0.02871298,95969.0,95968.0,0.2093726]
[1739453280437,0.02771298,95969.0,95968.0,0.2093726]
[1739453280729,0.15495772,95978.0,95977.0,0.2083531]
[1739453281032,0.15495772,95978.0,95977.0,0.5691531]
[1739453281224,0.20312877,95987.0,95986.0,0.2083335]
[1739453281534,0.20312877,95987.0,95986.0,0.5691335]
[1739453282029,0.02716179,95987.0,95986.0,0.5691335]
[1739453282333,0.00156331,95989.0,95987.0,0.2083298]
[1739453282723,0.02966233,95989.0,95986.0,0.3608]
[1739453282924,0.00156331,95989.0,95986.0,0.3608]
[1739453283425,0.004,95987.0,95986.0,0.5691335]
[1739453283620,0.007,95987.0,95986.0,0.5691335]
[1739453284426,0.004,95987.0,95986.0,0.5691335]
[1739453285327,0.008,95987.0,95986.0,0.5691335]
[1739453285629,0.004,95987.0,95986.0,0.3608]
[1739453285827,0.07408,95987.0,95986.0,0.3608]
[1739453286226,0.07808,95987.0,95986.0,0.3608]
[1739453286629,0.07808,95987.0,95986.0,0.32387]
[1739453286830,0.07808,95987.0,95986.0,0.27247215]
[1739453286831,0.008,95987.0,95986.0,0.27247215]
[1739453288629,0.008,95987.0,95977.0,0.36095626]
[1739453288830,0.13312323,95987.0,95977.0,0.32369626]
[1739453289632,0.12912323,95987.0,95980.0,0.2083461]
[1739453289933,0.12712323,95987.0,95980.0,0.2083461]
[1739453290340,0.12712323,95987.0,95977.0,0.32369626]
[1739453290743,0.12812323,95987.0,95977.0,0.32369626]
[1739453291539,0.12712323,95987.0,95977.0,0.32369626]
[1739453292325,0.12512323,95987.0,95986.0,0.3608]
[1739453292532,0.002,95987.0,95986.0,0.5691335]
[1739453292935,0.002,95987.0,95986.0,0.8691335]
[1739453293442,0.003,95987.0,95986.0,0.8691335]
[1739453293631,0.007,95987.0,95986.0,0.5691335]
[1739453294241,0.005,95987.0,95986.0,0.5721335]
[1739453295131,0.001,95987.0,95986.0,0.5751335]
[1739453296036,0.02785354,95989.0,95988.0,0.2083292]
[1739453296231,0.12512323,96000.0,95995.0,0.208314]
[1739453297144,0.02736268,95996.0,95995.0,0.208314]
[1739453297444,0.00015626,95996.0,95995.0,0.208314]
[1739453297742,0.00115626,95996.0,95995.0,0.208314]
[1739453298246,0.00315626,95996.0,95995.0,0.208314]
[1739453299045,0.03094024,95996.0,95995.0,0.208314]
[1739453301331,4e-08,95996.0,95995.0,0.609414]
[1739453301530,0.00156277,96020.0,96019.0,0.2082619]
[1739453301743,0.00156277,96020.0,96019.0,0.5690619]
[1739453301943,0.02843661,96020.0,96019.0,0.5690619]
[1739453302146,0.00156277,96020.0,96019.0,0.5690619]
[1739453302337,0.02856546,96020.0,96019.0,0.5690619]
[1739453302536,0.00156277,96020.0,96019.0,0.5690619]
[1739453303341,0.00256277,96020.0,96019.0,0.5690619]
[1739453304040,0.00356277,96020.0,96019.0,0.5690619]
[1739453304240,0.03044209,96020.0,96019.0,0.5690619]
[1739453304646,0.03244209,96020.0,96019.0,0.5690619]
[1739453305044,0.03044209,96020.0,96019.0,0.5690619]
[1739453305249,0.03544209,96020.0,96019.0,0.5690619]
[1739453305647,0.03044209,96020.0,96019.0,0.5690619]
[1739453305945,0.03544209,96020.0,96019.0,0.5690619]
[1739453306142,0.03544209,96020.0,96019.0,0.3608]
[1739453306340,0.03444209,96020.0,96019.0,0.3608]
[1739453307161,0.03844209,96020.0,96019.0,0.5690619]
[1739453309151,0.03344209,96020.0,96019.0,0.5690619]
[1739453309351,0.03544209,96020.0,96019.0,0.5690619]
[1739453309553,0.03144209,96020.0,96019.0,0.3608]
[1739453309851,0.03144209,96020.0,96015.0,0.2082704]
[1739453310047,0.03144209,96020.0,96011.0,0.3608]
[1739453310655,0.03344209,96020.0,96019.0,0.3608]
[1739453310849,0.03544209,96020.0,96019.0,0.5690619]
[1739453311451,0.03144209,96020.0,96019.0,0.5690619]
[1739453311656,0.03444209,96020.0,96019.0,0.5690619]
[1739453312145,0.02987932,96020.0,96019.0,0.5690619]
[1739453312346,0.004,96020.0,96019.0,0.5690619]
[1739453312546,0.005,96020.0,96019.0,0.5690619]
[1739453312750,0.001,96020.0,96019.0,0.5690619]
[1739453312950,0.003,96020.0,96019.0,0.5690619]
[1739453313147,0.002,96020.0,96019.0,0.5690619]
[1739453313346,0.005,96020.0,96019.0,0.5690619]
[1739453314248,0.003,96020.0,96019.0,0.5690619]
[1739453314556,0.007,96020.0,96019.0,0.5690619]
[1739453337262,0.004,96020.0,96019.0,0.5730619]
[1739453338973,0.007,96020.0,96019.0,0.5690619]
[1739453339364,0.05764882,96020.0,96019.0,0.5690619]
[1739453339971,0.05664882,96020.0,96019.0,0.5690619]
[1739453340667,0.05264882,96020.0,96019.0,0.5690619]
[1739453341777,0.05264882,96020.0,96019.0,0.3608]
[1739453341974,0.05664882,96020.0,96019.0,0.5690619]
[1739453342374,0.006,96020.0,96019.0,0.5690619]
[1739453342580,0.006,96020.0,96012.0,0.2191]
[1739453342876,0.3608,96013.0,96001.0,0.3608]
[1739453343070,0.10009644,96011.0,96001.0,0.3608]
[1739453343464,0.208292,96006.0,96001.0,0.3608]
[1739453343674,0.2131,96005.0,96001.0,0.3608]
[1739453344572,0.2082945,96004.0,96001.0,0.3608]
[1739453345076,0.1047,96003.0,96001.0,0.3608]
[1739453345480,0.12864279,96004.0,96001.0,0.3628]
[1739453345967,0.2131,96005.0,96001.0,0.3628]
[1739453346772,0.2131,96005.0,96001.0,0.3608]
[1739453346972,0.2131,96005.0,96001.0,0.3628]
[1739453347774,0.0506661,96004.0,96001.0,0.3628]
[1739453348777,0.0998,96003.0,96001.0,0.3628]
[1739453348978,0.4606,96003.0,96001.0,0.002]
[1739453349275,0.6688973,96003.0,96001.0,0.002]
[1739453349872,0.4606,96003.0,96001.0,0.002]
[1739453350272,0.2082988,96002.0,96001.0,0.002]
[1739453351579,0.4622,96003.0,95994.0,0.00015626]
[1739453351770,0.3608,95995.0,95994.0,0.00015626]
[1739453351970,0.569114,95995.0,95994.0,0.00015626]
[1739453352883,0.569114,95995.0,95994.0,0.00415626]
[1739453353469,0.569114,95995.0,95994.0,0.00615626]
[1739453353669,0.3608,95995.0,95977.0,0.3608]
[1739453353880,0.3608,95985.0,95977.0,0.3608]
[1739453354064,0.208,95984.0,95977.0,0.3608]
[1739453354270,0.1039,95984.0,95977.0,0.3608]
[1739453354569,0.1041,95983.0,95977.0,0.3608]
[1739453354965,0.1041,95983.0,95977.0,0.3648]
[1739453355468,0.1041,95983.0,95977.0,0.3688]
[1739453355676,0.2083443,95982.0,95977.0,0.008]
[1739453355871,0.1041,95983.0,95977.0,0.008]
[1739453356077,0.313442,95983.0,95977.0,0.008]
[1739453356473,0.2083509,95978.0,95977.0,0.004]
[1739453356784,0.3608,95978.0,95956.0,0.2083972]
[1739453356974,0.3608,95966.0,95954.0,0.3608]
[1739453357169,0.3608,95966.0,95962.0,0.2083854]
[1739453358281,0.3608,95966.0,95963.0,0.2083834]
[1739453358675,0.3608,95966.0,95957.0,0.2083964]
[1739453358877,0.3618,95966.0,95957.0,0.2083964]
[1739453359574,0.18200352,95966.0,95957.0,0.2083964]
[1739453359780,0.18300352,95966.0,95957.0,0.2083964]
[1739453360584,0.18200352,95966.0,95957.0,0.2083964]
[1739453360782,0.18300352,95966.0,95957.0,0.2083964]
[1739453361476,0.18300352,95966.0,95954.0,0.36090444]
[1739453361672,0.18300352,95966.0,95955.0,0.2084006]
[1739453361884,0.39138162,95966.0,95954.0,0.36090444]
[1739453362087,0.1071,95965.0,95954.0,0.56930674]
[1739453362377,0.3154799,95965.0,95954.0,0.36090444]
[1739453362777,0.208388,95961.0,95954.0,0.00010444]
[1739453362982,0.3608,95957.0,95954.0,0.00010444]
[1739453363374,0.1746799,95957.0,95954.0,0.00010444]
[1739453364394,0.20949588,95957.0,95954.0,0.00010444]
[1739453367294,0.21049588,95957.0,95954.0,0.00010444]
[1739453369590,0.03581598,95957.0,95956.0,0.2083986]
[1739453370682,0.03481598,95957.0,95956.0,0.2083986]
[1739453370994,0.001,95957.0,95956.0,0.2083986]
[1739453371493,0.00156339,95977.0,95955.0,0.1005]
[1739453371697,0.00156339,95977.0,95966.0,0.3608]
[1739453371996,0.20991709,95977.0,95969.0,0.2083701]
[1739453372184,0.20851626,95974.0,95967.0,0.0993]
[1739453372385,0.00015626,95974.0,95967.0,0.0993]
[1739453373595,0.00515626,95974.0,95967.0,0.0993]
[1739453374495,0.04411847,95974.0,95966.0,0.3608]
[1739453374707,0.2083686,95970.0,95956.0,0.2083977]
[1739453374889,0.1083,95969.0,95956.0,0.2083977]
[1739453375699,0.0391422,95974.0,95964.0,0.3608]
[1739453375895,0.0391422,95974.0,95964.0,0.5691809]
[1739453375896,0.00915626,95974.0,95964.0,0.5691809]
[1739453376293,0.00815626,95974.0,95964.0,0.5691809]
[1739453376593,0.00815626,95974.0,95964.0,0.3608]
[1739453376793,0.00415626,95974.0,95964.0,0.3608]
[1739453376995,0.00815626,95974.0,95964.0,0.3608]
[1739453377486,0.00415626,95974.0,95964.0,0.3608]
[1739453377690,0.00715626,95974.0,95967.0,0.2083747]
[1739453378202,0.0360562,95974.0,95964.0,0.3608]
[1739453378386,0.0360562,95974.0,95973.0,0.2083617]
[1739453378699,0.0360562,95974.0,95973.0,0.5691617]
[1739453379798,0.0380562,95974.0,95973.0,0.5691617]
[1739453380390,0.15505822,95980.0,95973.0,0.3608]
[1739453380585,0.15505822,95980.0,95979.0,0.5691487]
[1739453381588,0.15605822,95980.0,95979.0,0.5691487]
[1739453383097,0.16005822,95980.0,95979.0,0.5691487]
[1739453383690,0.15905822,95980.0,95979.0,0.5691487]
[1739453384393,0.004,95980.0,95979.0,0.5691487]
[1739453385691,0.02923149,95989.0,95979.0,0.3608]
[1739453385893,0.02923149,95989.0,95988.0,0.5691292]
[1739453387101,0.03123149,95989.0,95988.0,0.5691292]
[1739453387603,0.00215626,95989.0,95988.0,0.5691292]
[1739453387999,0.03177807,95989.0,95988.0,0.5691292]
[1739453388307,0.00415626,95989.0,95988.0,0.5691292]
[1739453389005,0.21348326,95989.0,95988.0,0.3608]
[1739453389396,0.00515626,95989.0,95988.0,0.3608]
[1739453390103,0.03502588,95989.0,95988.0,0.3608]
[1739453391004,0.39582588,95989.0,95975.0,0.1074]
[1739453391204,0.3608,95976.0,95941.0,0.31078502]
[1739453391393,0.3608,95942.0,95933.0,0.23077242]
[1739453391592,0.3608,95934.0,95916.0,0.43509903]
[1739453391793,0.3608,95919.0,95916.0,0.28683868]
[1739453392098,0.3900206,95919.0,95916.0,0.20173868]
[1739453392309,0.2084812,95918.0,95916.0,0.20173868]
[1739453392606,0.0292206,95919.0,95916.0,0.54924041]
[1739453392799,0.00015635,95927.0,95917.0,0.2084813]
[1739453393301,0.00015635,95927.0,95921.0,0.2084734]
[1739453393502,0.00015635,95927.0,95917.0,0.3608]
[1739453393697,0.5692812,95918.0,95916.0,0.16886041]
[1739453394096,0.5692812,95918.0,95916.0,0.16686041]
[1739453396498,0.3608,95918.0,95916.0,0.16686041]
[1739453396897,0.3608,95918.0,95908.0,0.00010474]
[1739453397096,0.3608,95909.0,95908.0,0.00010474]
[1739453398194,0.3608,95918.0,95908.0,0.00010474]
[1739453398403,0.3608,95910.0,95908.0,0.00010474]
[1739453399098,0.3608,95910.0,95908.0,0.00210474]
[1739453399605,0.18638508,95924.0,95908.0,0.00210474]
[1739453399817,0.3608,95921.0,95917.0,0.2084816]
[1739453400101,0.3608,95921.0,95917.0,0.2084817]
[1739453400502,0.36236381,95962.0,95929.0,0.2084573]
[1739453400707,0.36236381,95962.0,95932.0,0.0521126]
[1739453400904,0.3608,95954.0,95939.0,0.3608]
[1739453401110,0.36236381,95962.0,95939.0,0.3608]
[1739453401301,1.1220221,96398.0,95950.0,0.3608]
[1739453401611,0.01,96058.0,96039.0,0.3608]
[1739453401905,0.36625466,96138.0,96082.0,0.3608]
[1739453402104,0.3608,96250.0,96186.0,0.3608]
[1739453402310,0.3608,96232.0,96195.0,0.3608]
[1739453402517,0.0519388,96254.0,96195.0,0.3608]
[1739453402518,0.2078701,96200.0,96199.0,0.3608]
[1739453402812,0.09280326,96310.0,96224.0,0.3608]
[1739453402995,0.0518859,96352.0,96196.0,0.11690504]
[1739453402996,0.1015,96300.0,96282.0,0.3608]
[1739453403201,0.3608,96285.0,96275.0,0.01]
[1739453403400,0.00015585,96272.0,96252.0,0.00015585]
[1739453403601,0.02079,96200.0,96154.0,0.2079674]